bitfinex-derivatives/quotes_BTCF0:USTF0_20250416
["timestamp","ask_amount","ask_price","bid_price","bid_amount"]
[1744794374969,0.5508544,83861.0,83860.0,0.1192559]
[1744794375669,0.5509344,83861.0,83860.0,0.1192559]
[1744794376066,0.1192601,83857.0,83856.0,0.0596302]
[1744794376260,0.1192729,83852.0,83851.0,0.1788995]
[1744794376659,0.1192715,83849.0,83848.0,0.00879997]
[1744794376859,0.1192971,83831.0,83830.0,0.13152932]
[1744794377061,0.1192971,83831.0,83830.0,0.1192977]
[1744794377673,0.1849971,83831.0,83830.0,0.1192977]
[1744794377966,0.5457971,83831.0,83830.0,0.12845918]
[1744794378159,0.5457971,83831.0,83830.0,0.12945918]
[1744794379364,0.5457971,83831.0,83830.0,0.01016148]
[1744794379567,0.5457971,83831.0,83830.0,0.12945998]
[1744794379568,0.3946,83831.0,83830.0,0.12945998]
[1744794379768,0.00017893,83839.0,83830.0,0.12945998]
[1744794379769,0.1192875,83838.0,83832.0,0.0596475]
[1744794379971,0.1192875,83838.0,83837.0,0.1192886]
[1744794380171,0.1193675,83838.0,83837.0,0.1192886]
[1744794380373,0.11929,83836.0,83835.0,0.1789357]
[1744794382567,0.15099,83836.0,83835.0,0.1789357]
[1744794383174,0.0596464,83834.0,83830.0,0.12845768]
[1744794383475,0.1192971,83831.0,83830.0,0.12845768]
[1744794383863,0.1499971,83831.0,83830.0,0.12845768]
[1744794384466,0.1499971,83831.0,83830.0,0.12945768]
[1744794386369,0.1499971,83831.0,83830.0,0.13045768]
[1744794388768,0.1499971,83831.0,83830.0,0.13145768]
[1744794389163,0.0307,83831.0,83830.0,0.13145768]
[1744794389574,0.05974661,83845.0,83830.0,0.13145768]
[1744794389575,0.00010801,83845.0,83837.0,0.1192886]
[1744794389772,0.0307,83843.0,83837.0,0.2192886]
[1744794389967,0.0307,83843.0,83837.0,0.1192886]
[1744794390167,0.0307,83843.0,83838.0,0.1192871]
[1744794391369,0.00125893,83839.0,83838.0,0.1192871]
[1744794391771,0.00125893,83839.0,83838.0,0.1518871]
[1744794392371,0.00025893,83839.0,83838.0,0.1518871]
[1744794392573,0.00025893,83839.0,83838.0,0.1538871]
[1744794392970,0.00025893,83839.0,83838.0,0.2538871]
[1744794393268,0.00025893,83839.0,83838.0,0.2850871]
[1744794393473,0.00025893,83839.0,83838.0,0.2538871]
[1744794393671,0.36105893,83839.0,83838.0,0.1232871]
[1744794394074,0.36105893,83839.0,83838.0,0.1212871]
[1744794394274,0.36105893,83839.0,83838.0,0.1242871]
[1744794394578,0.48034463,83839.0,83838.0,0.1242871]
[1744794394874,0.48034463,83839.0,83838.0,0.1212871]
[1744794395274,0.48034463,83839.0,83838.0,0.1232871]
[1744794395466,0.54464463,83839.0,83838.0,0.1232871]
[1744794395667,0.54464463,83839.0,83838.0,0.1212871]
[1744794396477,0.54464463,83839.0,83838.0,0.1222871]
[1744794396676,0.42535893,83839.0,83838.0,0.1222871]
[1744794396976,0.54464463,83839.0,83838.0,0.1560871]
[1744794397182,0.00025893,83839.0,83838.0,0.1550871]
[1744794397373,0.00025893,83839.0,83838.0,0.2580871]
[1744794397578,0.0317,83857.0,83855.0,0.119263]
[1744794397777,0.0317,83857.0,83855.0,0.129263]
[1744794397972,0.0326,83860.0,83855.0,0.129263]
[1744794397973,0.3938,83856.0,83855.0,0.194663]
[1744794398172,0.3608,83856.0,83855.0,0.194663]
[1744794398477,0.00014581,83859.0,83858.0,0.1192587]
[1744794398785,0.1522516,83863.0,83862.0,0.119253]
[1744794399087,0.1848516,83863.0,83862.0,0.119253]
[1744794399275,0.1848516,83863.0,83862.0,0.152653]
[1744794399884,0.1848516,83863.0,83862.0,0.119253]
[1744794400278,0.1848516,83863.0,83857.0,0.05963]
[1744794400279,0.1192658,83855.0,83854.0,0.178891]
[1744794400786,0.2139658,83855.0,83854.0,0.178891]
[1744794401576,0.2159658,83855.0,83854.0,0.178891]
[1744794401776,0.2159658,83855.0,83854.0,0.2385222]
[1744794401977,0.2169658,83855.0,83854.0,0.2385222]
[1744794402486,0.0977,83855.0,83854.0,0.2385222]
[1744794402984,0.0334,83855.0,83854.0,0.2385222]
[1744794404776,0.003,83855.0,83854.0,0.3085222]
[1744794404980,0.003,83855.0,83854.0,0.3485222]
[1744794405981,0.00308,83855.0,83854.0,0.3485222]
[1744794411086,0.003,83855.0,83854.0,0.3485222]
[1744794411492,0.00308,83855.0,83854.0,0.3485222]
[1744794413281,0.00308,83855.0,83854.0,0.3585222]
[1744794415791,0.00308,83855.0,83854.0,0.3485222]
[1744794416192,0.00308,83855.0,83854.0,0.2385222]
[1744794421310,0.00308,83855.0,83854.0,0.3185222]
[1744794422301,0.00308,83855.0,83854.0,0.2385222]
[1744794422499,0.3608,83876.0,83863.0,0.1192516]
[1744794422694,0.032,83868.0,83863.0,0.2692516]
[1744794422893,0.3608,83876.0,83868.0,0.1192445]
[1744794423090,0.03136573,83875.0,83868.0,0.6400445]
[1744794423389,0.0645,83875.0,83874.0,0.1192359]
[1744794423598,0.0645,83875.0,83874.0,0.1292359]
[1744794423796,0.06458,83875.0,83874.0,0.1622359]
[1744794424599,0.06758,83875.0,83874.0,0.1622359]
[1744794424803,0.07358,83875.0,83874.0,0.1622359]
[1744794425199,0.07358,83875.0,83874.0,0.1713553]
[1744794425590,0.00908,83875.0,83874.0,0.1713553]
[1744794425788,0.00010801,83886.0,83874.0,0.4534194]
[1744794425990,1e-08,83886.0,83885.0,0.1192203]
[1744794426188,0.0316,83889.0,83888.0,0.119216]
[1744794426393,0.00010801,83895.0,83889.0,0.1192146]
[1744794426598,0.0306,83893.0,83889.0,0.3106146]
[1744794426898,0.0316,83892.0,83889.0,0.3106146]
[1744794427094,0.1,83900.0,83895.0,0.0596027]
[1744794427295,0.1,83900.0,83899.0,0.1192004]
[1744794427501,0.1,83900.0,83899.0,0.1992004]
[1744794428505,0.10008,83900.0,83899.0,0.2012004]
[1744794429298,8.006e-05,83900.0,83899.0,0.2112004]
[1744794429488,8.006e-05,83900.0,83899.0,0.2968804]
[1744794429489,6e-08,83900.0,83899.0,0.2968804]
[1744794429692,0.24193496,83910.0,83903.0,0.1191947]
[1744794429901,0.0658,83914.0,83913.0,0.1191805]
[1744794430105,0.0658,83914.0,83913.0,0.1991805]
[1744794430891,0.06588,83914.0,83913.0,0.1991805]
[1744794431303,0.06788,83914.0,83913.0,0.1991805]
[1744794432300,0.06588,83914.0,83913.0,0.1991805]
[1744794435000,0.0658,83914.0,83913.0,0.1991805]
[1744794435200,0.06588,83914.0,83913.0,0.1991805]
[1744794435504,0.06596,83914.0,83913.0,0.1191805]
[1744794438209,0.06596,83914.0,83913.0,0.1507805]
[1744794438606,0.06596,83914.0,83913.0,0.1191805]
[1744794439708,0.06596,83914.0,83913.0,0.1510805]
[1744794440010,0.06588,83914.0,83913.0,0.1510805]
[1744794440609,0.0658,83914.0,83913.0,0.1510805]
[1744794441510,0.06588,83914.0,83913.0,0.1510805]
[1744794447105,0.1850591,83914.0,83913.0,0.1510805]
[1744794448417,0.1192018,83899.0,83897.0,0.0596011]
[1744794448610,0.1192018,83899.0,83898.0,0.1192004]
[1744794448918,0.1788084,83896.0,83895.0,0.1192055]
[1744794449110,0.1192104,83892.0,83891.0,0.0918058]
[1744794449306,0.2384112,83898.0,83897.0,0.1192017]
[1744794449809,0.1192047,83896.0,83895.0,0.0322]
[1744794450015,0.1192118,83892.0,83886.0,0.059609]
[1744794450211,0.1192118,83892.0,83891.0,0.1788123]
[1744794450527,0.16394574,83900.0,83891.0,0.1788123]
[1744794450528,0.1192088,83894.0,83893.0,0.1788119]
[1744794450821,0.0596035,83895.0,83894.0,0.1192075]
[1744794451009,0.01229882,83897.0,83896.0,0.1192047]
[1744794451204,0.1191971,83902.0,83900.0,0.119199]
[1744794451414,0.5395797,83909.0,83900.0,0.02]
[1744794451613,0.1191855,83910.0,83909.0,0.1191862]
[1744794451922,0.0595917,83911.0,83910.0,0.0314]
[1744794452112,0.0595917,83911.0,83910.0,0.1505848]
[1744794452313,0.00010801,83912.0,83911.0,0.1191834]
[1744794452512,0.11928991,83912.0,83911.0,0.1191834]
[1744794452714,0.1191819,83912.0,83911.0,0.1505834]
[1744794453011,0.1192619,83912.0,83911.0,0.1505834]
[1744794455718,0.4800619,83912.0,83911.0,0.1505834]
[1744794456522,0.1192619,83912.0,83911.0,0.1505834]
[1744794456714,0.4800619,83912.0,83911.0,0.1505834]
[1744794457224,0.0595938,83908.0,83902.0,0.0302]
[1744794457419,0.4699947,83904.0,83903.0,0.2383833]
[1744794459024,0.5008947,83904.0,83903.0,0.2393833]
[1744794459221,0.5008947,83904.0,83903.0,0.2403833]
[1744794460927,0.5008947,83904.0,83903.0,0.2383833]
[1744794461225,0.5008947,83904.0,83903.0,0.1191942]
[1744794461531,0.5008947,83904.0,83903.0,0.1201942]
[1744794461725,0.5322947,83904.0,83903.0,0.1211942]
[1744794463028,0.5322947,83904.0,83903.0,0.1201942]
[1744794464522,0.5639947,83904.0,83903.0,0.1201942]
[1744794465126,0.5639947,83904.0,83903.0,0.1191942]
[1744794465321,0.5639947,83904.0,83903.0,0.1201942]
[1744794465727,0.5639947,83904.0,83903.0,0.1191942]
[1744794465930,0.5639947,83904.0,83903.0,0.1201942]
[1744794466723,0.2031947,83904.0,83903.0,0.1201942]
[1744794466931,0.5639947,83904.0,83903.0,0.1201942]
[1744794467426,0.5639947,83904.0,83903.0,0.001]
[1744794467625,0.0596028,83896.0,83880.0,0.3608]
[1744794467826,8e-05,83912.0,83911.0,0.1191834]
[1744794468021,8e-05,83912.0,83911.0,0.2991834]
[1744794468327,0.005,83916.0,83913.0,0.1191805]
[1744794468723,0.005,83916.0,83913.0,0.1797805]
[1744794469425,0.119178,83915.0,83913.0,0.1797805]
[1744794469636,0.5131591,83914.0,83913.0,0.1797805]
[1744794469828,0.42518,83914.0,83913.0,0.1797805]
[1744794470124,0.06438,83914.0,83913.0,0.1797805]
[1744794470325,0.03318,83914.0,83913.0,0.1797805]
[1744794470717,0.03418,83914.0,83913.0,0.1797805]
[1744794473018,0.00108,83914.0,83913.0,0.6105805]
[1744794473422,0.00116,83914.0,83913.0,0.6105805]
[1744794475723,0.00108,83914.0,83913.0,0.6105805]
[1744794475923,0.00116,83914.0,83913.0,0.6105805]
[1744794476130,0.00116,83914.0,83913.0,0.6205805]
[1744794477228,0.00108,83914.0,83913.0,0.6205805]
[1744794477427,0.00116,83914.0,83913.0,0.6205805]
[1744794478328,0.00116,83914.0,83913.0,0.8705805]
[1744794478528,0.00116,83914.0,83913.0,0.8745805]
[1744794478730,8e-05,83914.0,83913.0,0.8745805]
[1744794478926,0.00016,83914.0,83913.0,0.8815805]
[1744794479327,0.00016,83914.0,83913.0,0.6315805]
[1744794479926,0.00016,83914.0,83913.0,0.7160605]
[1744794486428,0.00016,83914.0,83913.0,0.7060605]
[1744794487335,0.00016,83914.0,83913.0,0.7160605]
[1744794487731,8e-05,83914.0,83913.0,0.7120605]
[1744794487925,0.00016,83914.0,83913.0,0.7140605]
[1744794488527,0.00016,83914.0,83913.0,0.7120605]
[1744794488736,0.00016,83914.0,83913.0,0.6854605]
[1744794488929,0.06506,83914.0,83913.0,0.6754605]
[1744794489130,0.2169391,83914.0,83913.0,0.6054605]
[1744794489337,0.09776,83914.0,83913.0,0.6054605]
[1744794489524,0.09776,83914.0,83913.0,0.5209805]
[1744794490832,0.09776,83914.0,83913.0,0.5199805]
[1744794491428,0.09776,83914.0,83913.0,0.5129805]
[1744794491741,0.09776,83914.0,83913.0,0.5149805]
[1744794491937,0.09776,83914.0,83913.0,0.4849805]
[1744794492142,0.09776,83914.0,83913.0,0.4839805]
[1744794493234,8e-05,83914.0,83913.0,0.6162805]
[1744794493438,0.00016,83914.0,83913.0,0.6805805]
[1744794493636,8e-05,83914.0,83913.0,0.6805805]
[1744794493843,0.00016,83914.0,83913.0,0.6905805]
[1744794495844,0.00016,83914.0,83913.0,0.6875805]
[1744794496038,0.00016,83914.0,83913.0,0.6945805]
[1744794496441,0.00016,83914.0,83913.0,0.6875805]
[1744794496642,0.00016,83914.0,83913.0,0.6965805]
[1744794497645,0.00016,83914.0,83913.0,0.6975805]
[1744794501542,0.00010801,83927.0,83921.0,0.0595845]
[1744794501845,0.0645,83940.0,83939.0,0.1191436]
[1744794502257,0.0645,83940.0,83939.0,0.1291436]
[1744794503750,0.0645,83940.0,83934.0,0.0595753]
[1744794503751,0.0595769,83933.0,83932.0,0.1787267]
[1744794503943,0.0595769,83933.0,83932.0,0.059576]
[1744794504450,0.1242769,83933.0,83932.0,0.059576]
[1744794504845,0.1242769,83933.0,83932.0,0.06831386]
[1744794505146,0.0647,83933.0,83932.0,0.06831386]
[1744794505743,0.0647,83933.0,83932.0,0.06931386]
[1744794508555,0.1838521,83933.0,83932.0,0.06931386]
[1744794511848,0.0647,83933.0,83932.0,0.06931386]
[1744794512239,0.06478,83933.0,83932.0,0.06931386]
[1744794512443,0.1839321,83933.0,83932.0,0.06931386]
[1744794516454,0.06478,83933.0,83932.0,0.06931386]
[1744794517147,0.1839321,83933.0,83932.0,0.06931386]
[1744794519352,0.06478,83933.0,83932.0,0.09961386]
[1744794520949,0.1839321,83933.0,83932.0,0.06931386]
[1744794523345,0.06478,83933.0,83932.0,0.06931386]
[1744794523747,0.1839321,83933.0,83932.0,0.06931386]
[1744794524257,0.06478,83933.0,83932.0,0.06931386]
[1744794525957,0.06478,83933.0,83932.0,0.10111386]
[1744794526158,0.1839321,83933.0,83932.0,0.10111386]
[1744794526753,0.1838521,83933.0,83932.0,0.10111386]
[1744794526959,0.1839321,83933.0,83932.0,0.10111386]
[1744794527555,0.1839321,83933.0,83932.0,0.06931386]
[1744794530954,0.0595839,83923.0,83911.0,0.0595912]
[1744794531161,0.2447544,83922.0,83919.0,0.0595852]
[1744794531353,0.158784,83922.0,83921.0,0.1191692]
[1744794531856,0.158784,83922.0,83921.0,0.1498692]
[1744794532358,0.0992,83922.0,83921.0,0.1498692]
[1744794532562,0.0992,83922.0,83921.0,0.15888655]
[1744794532863,0.2183677,83922.0,83921.0,0.15888655]
[1744794533163,0.2183677,83922.0,83921.0,0.16088655]
[1744794534554,0.2183677,83922.0,83921.0,0.16188655]
[1744794535163,0.2183677,83922.0,83921.0,0.01101735]
[1744794535363,0.2183677,83922.0,83921.0,0.00901735]
[1744794535559,0.2183677,83922.0,83917.0,0.0595873]
[1744794535560,0.1191734,83919.0,83917.0,0.0595873]
[1744794535858,0.1828734,83918.0,83917.0,0.2102621]
[1744794537152,0.1828734,83918.0,83917.0,0.2112621]
[1744794537654,0.0637,83918.0,83917.0,0.2112621]
[1744794538251,0.1828734,83918.0,83917.0,0.2122621]
[1744794538752,0.1828734,83918.0,83917.0,0.2112621]
[1744794538951,0.1828734,83918.0,83917.0,0.2132621]
[1744794539754,0.1828734,83918.0,83917.0,0.0940873]
[1744794540256,0.1828734,83918.0,83917.0,0.10300545]
[1744794540460,0.1828734,83918.0,83917.0,0.04241815]
[1744794540652,0.1828734,83918.0,83917.0,0.04341815]
[1744794541253,0.1828734,83918.0,83917.0,0.01091815]
[1744794541453,0.1828734,83918.0,83900.0,0.0595991]
[1744794541454,0.4364482,83918.0,83900.0,0.0595991]
[1744794541653,0.4799862,83909.0,83908.0,0.0311]
[1744794542171,0.5743862,83909.0,83908.0,0.0311]
[1744794543269,0.5743862,83909.0,83908.0,0.1502876]
[1744794543671,0.5753862,83909.0,83908.0,0.1502876]
[1744794543969,0.5763862,83909.0,83908.0,0.1502876]
[1744794544263,0.5763862,83909.0,83908.0,0.0311]
[1744794544462,0.5753862,83909.0,83908.0,0.0311]
[1744794545260,0.5763862,83909.0,83908.0,0.1502876]
[1744794545662,0.4572,83909.0,83908.0,0.1502876]
[1744794545867,0.5753862,83909.0,83908.0,0.1594449]
[1744794546562,0.5763862,83909.0,83908.0,0.1594449]
[1744794547072,0.5753862,83909.0,83908.0,0.1594449]
[1744794547272,0.5763862,83909.0,83908.0,0.1594449]
[1744794548672,0.5753862,83909.0,83908.0,0.1594449]
[1744794549068,0.5743862,83909.0,83908.0,0.0402573]
[1744794549873,0.5743862,83909.0,83908.0,0.1594449]
[1744794550574,0.5753862,83909.0,83908.0,0.1594449]
[1744794551969,0.5743862,83909.0,83908.0,0.1594449]
[1744794552771,0.5743862,83909.0,83908.0,0.0402573]
[1744794552975,0.5743862,83909.0,83908.0,0.0091573]
[1744794553270,0.5743862,83909.0,83905.0,0.1503919]
[1744794553271,0.1191905,83906.0,83905.0,0.1503919]
[1744794553466,0.1191905,83906.0,83900.0,0.0001787]
[1744794553467,0.1191976,83901.0,83900.0,0.0001787]
[1744794554065,0.1508976,83901.0,83900.0,0.0001787]
[1744794554375,0.119216,83888.0,83887.0,0.00512591]
[1744794554564,0.119216,83888.0,83887.0,0.0138527]
[1744794554869,0.119216,83888.0,83887.0,0.00512591]
[1744794555071,0.214316,83888.0,83887.0,0.00512591]
[1744794555573,0.214316,83888.0,83866.0,8e-05]
[1744794555574,0.0596123,83882.0,83866.0,8e-05]
[1744794555775,0.1192473,83866.0,83865.0,0.0312]
[1744794556068,0.1192487,83865.0,83861.0,0.0360275]
[1744794556276,0.1498487,83865.0,83862.0,0.0596258]
[1744794556570,0.5106487,83865.0,83861.0,0.0051275]
[1744794557068,0.52239835,83865.0,83864.0,0.18019081]
[1744794557269,0.52239835,83865.0,83864.0,0.00072393]
[1744794557472,0.52239835,83865.0,83864.0,0.00080393]
[1744794557969,0.52239835,83865.0,83864.0,0.00480393]
[1744794558769,0.52239835,83865.0,83864.0,0.01180393]
[1744794559483,0.0596257,83864.0,83858.0,0.000108]
[1744794559670,0.4204268,83862.0,83856.0,0.00017881]
[1744794559973,0.1192715,83849.0,83848.0,0.000108]
[1744794560181,0.1192743,83847.0,83846.0,0.23902468]
[1744794560568,0.1192743,83847.0,83846.0,0.17938688]
[1744794560775,0.1809743,83847.0,83846.0,0.18844268]
[1744794561074,0.1809743,83847.0,83846.0,0.0090558]
[1744794561275,0.11928,83843.0,83842.0,0.1192812]
[1744794561576,0.1192815,83842.0,83841.0,0.0327]
[1744794561771,0.1525815,83842.0,83841.0,0.0327]
[1744794562277,0.1525815,83842.0,83841.0,0.04149188]
[1744794562773,0.1525815,83842.0,83841.0,0.16077478]
[1744794563077,0.1525815,83842.0,83841.0,0.16085478]
[1744794564372,0.1525815,83842.0,83841.0,0.16485478]
[1744794564569,0.1535815,83842.0,83841.0,0.17185478]
[1744794569379,0.1535815,83842.0,83841.0,0.05257188]
[1744794569878,0.1535815,83842.0,83841.0,0.01987188]
[1744794570070,0.1843815,83842.0,83841.0,0.01979188]
[1744794570267,0.2171815,83842.0,83841.0,0.01979188]
[1744794570466,0.2171815,83842.0,83841.0,0.01987188]
[1744794571272,0.1863815,83842.0,83841.0,0.01987188]
[1744794571471,0.001,83842.0,83841.0,0.13915478]
[1744794571673,0.1512815,83842.0,83841.0,0.20245478]
[1744794572074,0.001,83842.0,83841.0,0.20245478]
[1744794574980,0.1202815,83842.0,83841.0,0.20237478]
[1744794575480,0.001,83842.0,83841.0,0.20237478]
[1744794575871,0.1202815,83842.0,83841.0,0.20245478]
[1744794579486,0.001,83842.0,83841.0,0.20245478]
[1744794579688,0.46514624,83860.0,83854.0,0.1192644]
[1744794579986,0.3608,83879.0,83864.0,0.1192502]
[1744794580182,8e-05,83866.0,83864.0,0.1192502]
[1744794580378,8e-05,83866.0,83864.0,0.1619502]
[1744794580784,0.1193279,83866.0,83864.0,0.1619502]
[1744794580984,0.1193279,83866.0,83864.0,0.1941502]
[1744794582379,0.1193277,83866.0,83864.0,0.1941502]
[1744794582881,0.1193287,83865.0,83864.0,0.1941502]
[1744794583187,0.1193287,83865.0,83864.0,0.01]
[1744794583382,0.119253,83862.0,83861.0,0.1192543]
[1744794584280,0.119253,83862.0,83861.0,0.1511543]
[1744794584484,0.06338,83865.0,83864.0,0.1192502]
[1744794585075,0.06338,83865.0,83864.0,0.1202502]
[1744794585275,0.06338,83865.0,83864.0,0.1531502]
[1744794585485,0.06338,83865.0,83864.0,0.1823502]
[1744794585884,0.1827087,83865.0,83864.0,0.1823502]
[1744794586079,0.0596262,83863.0,83856.0,0.36097881]
[1744794586379,0.1192587,83858.0,83857.0,0.0316]
[1744794586778,0.1804587,83858.0,83857.0,0.1508601]
[1744794586974,0.1804587,83858.0,83857.0,0.1509401]
[1744794588885,0.1804587,83858.0,83857.0,0.1519401]
[1744794589291,0.1804587,83858.0,83857.0,0.1529401]
[1744794591792,0.0612,83858.0,83857.0,0.1529401]
[1744794592178,0.1804587,83858.0,83857.0,0.1529401]
[1744794592589,0.0612,83858.0,83857.0,0.1529401]
[1744794592792,0.1804587,83858.0,83857.0,0.1529401]
[1744794594379,0.05972811,83871.0,83864.0,0.1192502]
[1744794594585,8e-05,83865.0,83864.0,0.1192502]
[1744794594779,8e-05,83865.0,83864.0,0.1502502]
[1744794594986,0.1194087,83865.0,83864.0,0.1502502]
[1744794595584,0.1495087,83865.0,83864.0,0.1806502]
[1744794595791,0.1505087,83865.0,83864.0,0.1806502]
[1744794596580,0.03126,83865.0,83864.0,0.1806502]
[1744794596789,0.00016,83865.0,83864.0,0.1906502]
[1744794598384,0.00016,83865.0,83864.0,0.1916502]
[1744794598782,0.00016,83865.0,83864.0,0.1926502]
[1744794599392,0.00016,83865.0,83864.0,0.1916502]
[1744794599593,0.00016,83865.0,83864.0,0.1936502]
[1744794601286,0.00016,83865.0,83864.0,0.4636502]
[1744794601686,8e-05,83865.0,83864.0,0.47547995]
[1744794601893,8e-05,83865.0,83864.0,0.22547995]
[1744794602489,0.00016,83865.0,83864.0,0.22547995]
[1744794602783,8e-05,83865.0,83864.0,0.22547995]
[1744794602987,0.00016,83865.0,83864.0,0.22547995]
[1744794603394,0.00017881,83873.0,83872.0,0.1192388]
[1744794603595,0.00017881,83873.0,83872.0,0.6200388]
[1744794603792,0.00017881,83873.0,83872.0,0.6941388]
[1744794605587,0.00125881,83873.0,83872.0,0.6941388]
[1744794606097,0.00117881,83873.0,83872.0,0.6941388]
[1744794607491,0.00017881,83873.0,83872.0,0.6941388]
[1744794607794,0.00017881,83873.0,83872.0,0.6981388]
[1744794608189,0.00017881,83873.0,83872.0,0.7011388]
[1744794608786,0.00017881,83873.0,83872.0,0.6981388]
[1744794608988,0.00017881,83873.0,83872.0,0.7001388]
[1744794609395,0.0333,83888.0,83887.0,0.1192175]
[1744794609701,0.0331,83889.0,83888.0,0.119216]
[1744794609999,0.1192225,83884.0,83883.0,0.0596113]
[1744794610188,0.0331,83889.0,83887.0,0.1192175]
[1744794610189,0.1513178,83888.0,83887.0,0.1192175]
[1744794610698,0.2151178,83888.0,83887.0,0.1192175]
[1744794612293,0.0959,83888.0,83887.0,0.1192175]
[1744794612492,0.215116,83888.0,83887.0,0.1192175]
[1744794612687,0.0959,83888.0,83887.0,0.00878711]
[1744794612998,0.1192445,83868.0,83862.0,0.0596263]
[1744794613197,0.1192459,83867.0,83861.0,0.0315]
[1744794613395,0.1192459,83867.0,83866.0,0.1194073]
[1744794613396,0.1849459,83867.0,83866.0,0.1194073]
[1744794614203,0.1849459,83867.0,83866.0,0.1194873]
[1744794615004,0.1849459,83867.0,83866.0,0.1192473]
[1744794615603,0.1849459,83867.0,83866.0,0.00024]
[1744794615804,0.1849459,83867.0,83866.0,0.1194873]
[1744794616099,0.0667,83867.0,83866.0,0.1194873]
[1744794616410,0.1859459,83867.0,83866.0,0.1194873]
[1744794619106,0.1859459,83867.0,83866.0,0.00024]
[1744794619107,0.1849459,83867.0,83866.0,0.00024]
[1744794619406,0.1849459,83867.0,83866.0,0.12852723]
[1744794619607,0.1849459,83867.0,83866.0,0.1194873]
[1744794619902,0.1859459,83867.0,83866.0,0.1194073]
[1744794620100,0.1859459,83867.0,83866.0,0.1192473]
[1744794620291,0.2168459,83867.0,83866.0,0.1192473]
[1744794620492,0.2168459,83867.0,83866.0,0.1194073]
[1744794620995,0.2178459,83867.0,83866.0,0.1194073]
[1744794621793,0.2168459,83867.0,83866.0,0.1194073]
[1744794622602,0.2158459,83867.0,83866.0,0.1194073]
[1744794622900,0.2168459,83867.0,83866.0,0.1194073]
[1744794623500,0.2178459,83867.0,83866.0,0.1194073]
[1744794623899,0.0352,83867.0,83866.0,0.12822441]
[1744794624099,0.0311,83873.0,83872.0,0.1192388]
[1744794624296,0.0312,83874.0,83873.0,0.1192374]
[1744794624501,0.0312,83874.0,83873.0,0.2029374]
[1744794624810,0.03128,83874.0,83873.0,0.2029374]
[1744794625005,0.0312,83874.0,83873.0,0.2029374]
[1744794625212,0.0623,83874.0,83873.0,0.2029374]
[1744794626106,0.1815359,83874.0,83873.0,0.1600374]
[1744794626712,0.0623,83874.0,83873.0,0.1610374]
[1744794626907,0.1815359,83874.0,83873.0,0.1610374]
[1744794627108,0.0623,83874.0,83873.0,0.1630374]
[1744794628398,0.00017881,83875.0,83874.0,0.1192359]
[1744794628598,0.00017881,83875.0,83874.0,0.1692359]
[1744794628810,0.005,83890.0,83889.0,0.1192146]
[1744794629106,0.3608,83900.0,83891.0,0.1192118]
[1744794629107,0.0322,83895.0,83891.0,0.1192118]
[1744794629301,0.0322,83895.0,83891.0,0.3401118]
[1744794629610,0.0302,83894.0,83891.0,0.3306118]
[1744794630012,0.0302,83894.0,83893.0,0.1192089]
[1744794630404,0.0302,83894.0,83893.0,0.1506089]
[1744794631420,0.0302,83894.0,83893.0,0.2014089]
[1744794632005,0.0342,83894.0,83893.0,0.2014089]
[1744794632917,0.0362,83894.0,83893.0,0.2014089]
[1744794633916,0.0362,83894.0,83893.0,0.1706089]
[1744794635410,0.006,83894.0,83893.0,0.2016089]
[1744794636714,0.00608,83894.0,83893.0,0.2016089]
[1744794637220,0.00608,83894.0,83893.0,0.1706089]
[1744794637221,0.03748,83894.0,83893.0,0.1706089]
[1744794637614,0.06818,83894.0,83893.0,0.1606089]
[1744794637920,0.1873875,83894.0,83893.0,0.1292089]
[1744794638117,0.06818,83894.0,83893.0,0.1292089]
[1744794638821,0.06818,83894.0,83893.0,0.1604089]
[1744794639223,0.006,83894.0,83893.0,0.1907089]
[1744794639519,0.00608,83894.0,83893.0,0.1907089]
[1744794639715,0.006,83894.0,83893.0,0.1907089]
[1744794639916,0.00608,83894.0,83893.0,0.1907089]
[1744794640321,0.00608,83894.0,83893.0,0.2007089]
[1744794642521,0.00010801,83902.0,83898.0,0.0596009]
[1744794642725,0.0627,83906.0,83905.0,0.1191919]
[1744794643311,0.0627,83906.0,83905.0,0.1901919]
[1744794643925,0.1818905,83906.0,83905.0,0.1291919]
[1744794644224,0.0707,83906.0,83905.0,0.1201919]
[1744794644414,0.0707,83906.0,83905.0,0.1504919]
[1744794644916,0.07078,83906.0,83905.0,0.1504919]
[1744794645313,0.07078,83906.0,83905.0,0.1604919]
[1744794645513,0.07078,83906.0,83905.0,0.1922919]
[1744794645721,0.0398,83906.0,83905.0,0.1922919]
[1744794645921,0.03988,83906.0,83905.0,0.1922919]
[1744794649720,0.03988,83906.0,83905.0,0.20405587]
[1744794650016,0.03988,83906.0,83905.0,0.1922919]
[1744794651315,0.03988,83906.0,83905.0,0.2022919]
[1744794652318,0.03988,83906.0,83905.0,0.21441177]
[1744794652521,0.03988,83906.0,83905.0,0.2022919]
[1744794653023,0.03988,83906.0,83905.0,0.5630919]
[1744794653722,0.03988,83906.0,83905.0,0.5009919]
[1744794653917,0.03988,83906.0,83905.0,0.4909919]
[1744794655421,0.03988,83906.0,83905.0,0.5217919]
[1744794663023,0.03988,83906.0,83905.0,0.4909919]
[1744794664324,0.03988,83906.0,83905.0,0.5232919]
[1744794669632,0.03988,83906.0,83905.0,0.5552919]
[1744794670132,0.03988,83906.0,83905.0,0.5652919]
[1744794671137,0.00808,83906.0,83905.0,0.5652919]
[1744794671327,0.05987593,83914.0,83905.0,0.5652919]
[1744794671328,0.0325,83913.0,83912.0,0.1191819]
[1744794671529,0.00028633,83914.0,83913.0,0.1191805]
[1744794671732,0.24193496,83918.0,83914.0,0.0595895]
[1744794671936,0.24193496,83918.0,83917.0,0.1191748]
[1744794672138,0.24193496,83918.0,83917.0,0.29822705]
[1744794672440,0.24201496,83918.0,83917.0,0.29822705]
[1744794673143,0.15742738,83918.0,83917.0,0.29822705]
[1744794674136,0.15734738,83918.0,83917.0,0.29822705]
[1744794674336,0.15742738,83918.0,83917.0,0.30122705]
[1744794674640,0.15742738,83918.0,83917.0,0.30822705]
[1744794675134,0.15734738,83918.0,83917.0,0.55822705]
[1744794675436,0.15742738,83918.0,83917.0,0.55822705]
[1744794675634,0.15734738,83918.0,83917.0,0.55822705]
[1744794675831,0.15742738,83918.0,83917.0,0.55822705]
[1744794676538,8e-05,83918.0,83917.0,0.55822705]
[1744794677036,1e-07,83918.0,83917.0,0.56822705]
[1744794677241,0.0318,83936.0,83935.0,0.1191493]
[1744794677436,0.0318,83936.0,83935.0,0.7239893]
[1744794677940,0.03188,83936.0,83935.0,0.7239893]
[1744794678132,0.03188,83936.0,83935.0,0.7139893]
[1744794679135,0.03188,83936.0,83935.0,0.7159893]
[1744794680430,0.1510279,83936.0,83935.0,0.5128]
[1744794680636,0.1191592,83928.0,83927.0,0.11933941]